Cogmind - Beta 13 @@@ ROGUE MODE // 2024.03.31 @ 15:58:41 Player: LunaUnderStars Result: Destroyed by G-47 Trooper with Particle Gun Performance ------------- Evolutions (0) 0 Regions Visited (2) 400 Robots Destroyed (30) 150 Value Destroyed (665) 665 Prototype IDs (2) 40 Alien Tech Used (0) 0 Bonus (0) 0 TOTAL SCORE: 1255 Bonus ------- None Cogmind --------- Core Integrity 0/250 Matter 262/300 Energy 88/100 System Corruption 0% Temperature Cool (9) Movement Core (1350) Ox26 Location -10/Mines Parts ------- > --- POWER (1) -------- (None) > --- PROPULSION (2) --- (None) > --- UTILITY (2) ------ Huge Storage Unit Signal Interpreter > --- WEAPON (2) ------- Datajack > --- INVENTORY (25) --- Aluminum Leg Flight Unit Flight Unit Flight Unit Flight Unit Flight Unit Flight Unit Heat Sink Medium Matter Pod (100) Structural Scanner Visual Processing Unit Sensor Array Terrain Scanner Terrain Scan Processor Targeting Computer Shield Generator Shield Generator Shield Generator Shield Generator Tractor Beam Improved Medium Laser Improved Medium Laser Assault Rifle Grenade Launcher Mining Claw Peak State ------------ > --- POWER ------------ Light Nuclear Core > --- PROPULSION ------- Compact Wheel Compact Wheel > --- UTILITY ---------- Huge Storage Unit Signal Interpreter > --- WEAPON ----------- Improved Medium Laser Improved Medium Laser > --- INVENTORY -------- Ion Engine Flight Unit Flight Unit Flight Unit Flight Unit Flight Unit Flight Unit Flight Unit Flight Unit Visual Processing Unit Sensor Array Terrain Scanner Terrain Scan Processor Targeting Computer Shield Generator Tractor Beam Grenade Launcher [Rating: 15] Favorites ----------- Power Light Ion Engine Engine Light Ion Engine Power Core Light Nuclear Core Propulsion Compact Wheel Leg Aluminum Leg Wheel Compact Wheel Hover Unit Backup Propulsion I Flight Unit Flight Unit Utility Signal Interpreter Device Sensor Array Storage Huge Storage Unit Processor Signal Interpreter Hackware Hacking Suite Weapon Assault Rifle Energy Gun Improved Medium Laser Ballistic Gun Assault Rifle Launcher Grenade Launcher Special Melee Weapon Datajack Build | -11 -10 -10 ------- Run | Yrd Mat Min Slots Evolved . | . . . Power . | . . . Propulsion . | . . . Utility . | . . . Weapon . | . . . Parts Attached 55 | 11 42 2 Power 8 | 1 7 . Engine 7 | 1 6 . Core 1 | . 1 . Reactor . | . . . Propulsion 16 | 3 13 . Treads . | . . . Leg 2 | . 2 . Wheel 11 | 3 8 . Hover 2 | . 2 . Flight 1 | . 1 . Utility 8 | 1 7 . Device 3 | 1 2 . Storage 3 | . 3 . Processor 1 | . 1 . Hackware 1 | . 1 . Protection . | . . . Artifact . | . . . Weapon 23 | 6 15 2 Energy Gun 11 | 4 7 . Energy Cannon . | . . . Ballistic Gun 6 | 2 4 . Ballistic Cannon . | . . . Launcher 5 | . 4 1 Special Weapon . | . . . Impact Weapon . | . . . Slashing Weapon . | . . . Piercing Weapon . | . . . Special Melee Weapon 1 | . . 1 Unidentified Prototypes 1 | . 1 . Parts Lost 11 | . 8 3 Power 5 | . 4 1 Propulsion 4 | . 3 1 Utility 1 | . 1 . Weapon 1 | . . 1 Highest Loss Streak 3 | . 2 3 To Critical Strikes . | . . . Average Slot Usage (%) 92 | . 92 85 Engine 12 | . 12 14 Core 1 | . 1 . Wheel 17 | . 17 14 Hover 1 | . 1 . Flight 2 | . 2 . Device 2 | . 2 . Storage 12 | . 12 14 Processor 11 | . 11 14 Hackware 1 | . 1 . Energy Gun 9 | . 9 . Ballistic Gun 17 | . 17 14 Naked Turns . | . . . Heaviest Build 91 | 8 91 82 Greatest Support 32 | 20 32 16 Greatest Overweight (x) 28 | . 28 26 Average Overweight (x) 2 | . 3 15 Largest Inventory Capacity 25 | 5 25 25 Average Capacity 19 | 5 20 25 Most Carried 25 | 5 25 25 Average Carried 17 | 3 19 25 Final Capacity 25 | 5 25 25 Final Carried 25 | 4 25 25 Class Distribution -------------------- 57% | Scavenger-Mutant 42% | Mutant Dominant Class ---------------- Scavenger-Mutant | -10/Materials Scavenger-Mutant | -10/Mines Resources | -11 -10 -10 ----------- Run | Yrd Mat Min Matter Collected 1038 | 321 717 . Remotely . | . . . Salvage Created 843 | 37 806 . Parts 62 | 2 60 . Haulers Intercepted . | . . . Recyclers Shooed . | . . . Parts Field Recycled . | . . . Retrieved Matter . | . . . Parts Self-Destructed . | . . . Prevented . | . . . Kills | -11 -10 -10 ------- Run | Yrd Mat Min Combat Hostiles Destroyed 21 | 1 20 . Guns 17 | 1 16 . AOE 4 | . 4 . Classes Destroyed 7 | 1 6 . Worker 2 | . 2 . Builder 2 | . 2 . Recycler 1 | . 1 . Operator 1 | . 1 . Watcher 3 | . 3 . Swarmer 6 | . 6 . Grunt 15 | 1 14 . Best Kill Streak 5 | 1 5 . Combat Bots Only 3 | 1 3 . Max Kills in Single Turn 2 | 1 2 . Gunslinging . | . . . Exploded 2 | . 2 . Melee . | . . . Uniques/NPCs Destroyed . | . . . Combat | -11 -10 -10 -------- Run | Yrd Mat Min Hostile Shots Fired 126 | 6 105 15 Missed 30 | 2 25 3 Damage Taken 1124 | 44 902 178 Core 263 | 23 209 31 Absorbed by Shields . | . . . Regen/Repaired (Parts) 125 | . 125 . Core Remaining (%) 90 | 90 . . Volleys Fired 88 | 11 74 3 Largest 2 | 2 2 2 Hottest 112 | 80 112 50 Shots Fired 166 | 21 139 6 Gun 157 | 21 133 3 Cannon . | . . . Launcher 9 | . 6 3 Special . | . . . Kinetic 80 | 5 72 3 Thermal 73 | 12 61 . Explosive 9 | . 6 3 Electromagnetic 4 | 4 . . Robot Hit Streak 8 | 2 8 8 Robot Miss Streak 5 | 2 5 . Penetration Max . | . . . Secondary Targets 5 | . 5 . Max Gunslinging Chain 1 | . 1 . Shots Hit Robots 80 | 4 74 2 Core Hits 48 | 2 44 2 Critical Kills . | . . . Critical Parts Destroyed . | . . . Critical Strikes 3 | . 3 . Burn 3 | . 3 . Melee Attacks . | . . . Impact . | . . . Slashing . | . . . Piercing . | . . . Sneak Attacks . | . . . Combat Hostiles . | . . . Follow-up Attacks . | . . . Damage Inflicted 1409 | 53 1252 104 Guns 1074 | 53 1012 9 Cannons . | . . . Explosions 331 | . 236 95 Melee . | . . . Ramming 4 | . 4 . Kinetic 471 | 10 452 9 Thermal 560 | . 560 . Explosive 331 | . 236 95 Electromagnetic 43 | 43 . . Impact . | . . . Slashing . | . . . Piercing . | . . . Highest Corruption . | . . . Average Corruption . | . . . Corruption Purged . | . . . Corruption Blocked . | . . . Overload Shots . | . . . Overflow Damage . | . . . Projectiles . | . . . Explosions . | . . . Melee . | . . . Knockbacks . | . . . Impact . | . . . Kinetic . | . . . Secondary . | . . . Self-Inflicted Damage 40 | . 24 16 Shots 2 | . 1 1 Rammed 1 | . 1 . Targets Rammed 1 | . 1 . Kicked . | . . . Crushed . | . . . Highest Temperature 342 | 12 342 30 Average Temperature 69 | 11 73 16 Received Heat Transfer 444 | 24 330 90 Effects 4 | . 4 . Shutdowns 1 | . 1 . Energy Bleed 1 | . 1 . Interference 1 | . 1 . Damage (minor) 1 | . 1 . Siege Activations . | . . . Robots Corrupted . | . . . Combat Hostiles . | . . . Parts Fried . | . . . Impact Corruptions . | . . . Robots Melted . | . . . Combat Hostiles . | . . . Parts Melted 2 | . 2 . Heat Transferred 1472 | . 1472 . Parts Sabotaged . | . . . Parts Stolen . | . . . Parts Stripped . | . . . Power Chain Reactions . | . . . Alert | -11 -10 -10 ------- Run | Yrd Mat Min Peak Influence 152 | 20 152 22 Initial 13 | . 13 . Average 62 | 14 69 13 Maximum Alert Level . | . . . Low Security (%) 100 | 100 100 100 Level 1 . | . . . Level 2 . | . . . Level 3 . | . . . Level 4 . | . . . Level 5 . | . . . High Security . | . . . Max Security . | . . . Squads Dispatched 7 | . 7 . Investigation 6 | . 6 . Extermination . | . . . Reinforcement 1 | . 1 . Assault . | . . . Garrison . | . . . Intercept . | . . . Searches Triggered . | . . . Construction Impeded . | . . . Haulers Reinforced . | . . . Active Scanning Responses . | . . . Cargo Convoy Interrupts . | . . . Stealth | -11 -10 -10 --------- Run | Yrd Mat Min Distress Signals . | . . . Communications Jammed . | . . . Distress Signals . | . . . Times Spotted 30 | 1 27 2 Peak Tracking Total 3 | 1 3 2 Tactical Retreats 2 | . 2 . Traps | -11 -10 -10 ------- Run | Yrd Mat Min Traps Triggered 3 | . 3 . Indirectly . | . . . Trap Hack Attempts . | . . . Triggered . | . . . Disarmed . | . . . Reprogrammed . | . . . Reused . | . . . Traps Extracted . | . . . Installed . | . . . Triggered . | . . . Machines | -11 -10 -10 ---------- Run | Yrd Mat Min Machines Disabled . | . . . Max in Single Turn . | . . . Machines Repaired . | . . . Machines Dismantled . | . . . Machines Sabotaged . | . . . Overloaded Fab Kills . | . . . Hacking | -11 -10 -10 --------- Run | Yrd Mat Min Machines Accessed 9 | . 9 . Terminals 6 | . 6 . Fabricators . | . . . Repair Stations 1 | . 1 . Recycling Units 2 | . 2 . Scanalyzers . | . . . Garrison Access . | . . . Total Hacks 37 | . 37 . Successful 25 | . 25 . Failed 12 | . 12 . Catastrophic 4 | . 4 . Database Lockouts . | . . . Manual . | . . . Terminals 20 | . 20 . Fabricators . | . . . Repair Stations 8 | . 8 . Recycling Units 9 | . 9 . Scanalyzers . | . . . Garrison Access . | . . . Terminal Hacks 10 | . 10 . Record 4 | . 4 . Prototype ID Bank 1 | . 1 . Emergency Access Points 1 | . 1 . Alert Level 1 | . 1 . Unreport Threat 1 | . 1 . Recall Reinforcements 1 | . 1 . Hauler Manifests 1 | . 1 . Fabricator Hacks . | . . . Repair Station Hacks 7 | . 7 . Scan Component 3 | . 3 . Repair 3 | . 3 . Refit 1 | . 1 . Recycling Unit Hacks 8 | . 8 . Recycle Component 2 | . 2 . Process 3 | . 3 . Report Inventory 1 | . 1 . Retrieve Matter 1 | . 1 . Retrieve Components 1 | . 1 . Scanalyzer . | . . . Garrison Access Hacks . | . . . Unauthorized Hacks . | . . . Terminals . | . . . Fabricators . | . . . Repair Stations . | . . . Recycling Units . | . . . Scanalyzers . | . . . Garrison Access . | . . . Data Cores Recovered . | . . . Used . | . . . Hacking Detections 8 | . 8 . Full Trace Events 7 | . 7 . Feedback Events . | . . . Feedback Blocked . | . . . Robot Schematics Acquired . | . . . Robots Built . | . . . Authchips . | . . . Time . | . . . Total Robot Build Rating . | . . . Part Schematics Acquired . | . . . Parts Built . | . . . Authchips . | . . . Time . | . . . Total Part Build Rating . | . . . Parts Repaired 3 | . 3 . Time 78 | . 78 . Parts Recycled 2 | . 2 . Recycled Matter 32 | . 32 . Retrieved Matter 22 | . 22 . Retrieved Components 1 | . 1 . Parts Scanalyzed . | . . . Part Schematics Acquired . | . . . Parts Damaged . | . . . Bothacking | -11 -10 -10 ------------ Run | Yrd Mat Min Used RIF Installer . | . . . Robots Hacked . | . . . Non-combat . | . . . Combat . | . . . Robot Hacks Applied . | . . . Relay Couplers Released . | . . . Fabnet Peak Effective % . | . . . Robots Rewired . | . . . Allies Hacked . | . . . Hacks Repelled . | . . . Allies | -11 -10 -10 -------- Run | Yrd Mat Min Total Allies . | . . . Largest Group . | . . . Highest-Rated Group . | . . . Highest-Rated Ally . | . . . Total Orders . | . . . Ally Attacks . | . . . Total Damage . | . . . Kills . | . . . Allies Corrupted . | . . . Allies Melted . | . . . Intel | -11 -10 -10 ------- Run | Yrd Mat Min Robot Analysis Total . | . . . Derelict Logs Recovered . | . . . Drone Launches . | . . . Drone Recoveries . | . . . Exploration | -11 -10 -10 ------------- Run | Yrd Mat Min Turns Passed 2406 | 287 2105 14 Spaces Moved 1330 | 192 1136 2 Core 32 | 30 1 1 Treads . | . . . Legs . | . . . Wheels 1293 | 162 1130 1 Hover 5 | . 5 . Flight . | . . . Fastest Speed 50 | 50 80 175 Average Speed 134 | 75 143 762 Slowest Speed 1450 | 80 1450 1350 Overloaded Moves . | . . . Propulsion Burnouts . | . . . Robots Hopped . | . . . Cave-ins Triggered . | . . . Exploration Rate (%) 35 | 8 94 4 Regions Visited 2 Branch Regions 1 Pre-discovered Areas . | . . . Known Exits Taken 1 | . 1 . Unknown Exits Taken 1 | 1 . . Scrap Searched . | . . . Spaces Dug . | . . . Terrain Destroyed 43 | . 30 13 Melee . | . . . Projectile . | . . . AOE 43 | . 30 13 Terrain Rammed . | . . . Walls Destroyed . | . . . Machines Disabled . | . . . Actions | -11 -10 -10 --------- Run | Yrd Mat Min Total 1794 | 311 1476 7 Wait 226 | 87 139 . Move 1328 | 191 1135 2 Hop . | . . . Pick Up 68 | 10 58 . Fast Attach . | . . . Attach 29 | 7 22 . Detach 3 | 1 2 . Swap 26 | 4 20 2 Drop 25 | . 25 . Fire 88 | 11 74 3 Melee . | . . . Ram 1 | . 1 . Kick . | . . . Crush . | . . . Escape Stasis . | . . . Rewire . | . . . Trap . | . . . Miscellaneous . | . . . Route ------- -11/Scrapyard -10/Materials (discovered 3 exits: *Mat x2 / *Min) -10/Mines History --------- Turn | Location | Event 2 | -11/Scrapyard | Met Revision 17 58 | -11/Scrapyard | Discovered new exit (range 8) 288 | -11/Scrapyard | Entered Materials 308 | -10/Materials | Build established: Mutant 557 | -10/Materials | Discovered new exit (range 14) 933 | -10/Materials | Build established: Scavenger-Mutant 1128 | -10/Materials | Discovered new exit (range 15) 1273 | -10/Materials | Core integrity fell below 50% 1393 | -10/Materials | Build established: Mutant 1568 | -10/Materials | Repaired Com. Wheel 1594 | -10/Materials | Repaired Assault Rifle 1640 | -10/Materials | Repaired Com. Wheel 1800 | -10/Materials | Core integrity fell below 20% 1831 | -10/Materials | Identified exit to Materials 2033 | -10/Materials | Discovered new exit (range 10) 2047 | -10/Materials | Identified exit to Mines 2255 | -10/Materials | Build established: Scavenger-Mutant 2393 | -10/Materials | Entered Mines 2394 | -10/Mines | Assembled infested the area 2407 | -10/Mines | Destroyed by G-47 Trooper with Particle Gun Last Messages --------------- map in exchange for smaller text? Consider selecting a different UI Layout in the option menu. EXIT=FOUND EXIT=IDENTIFIED: MINES K-01 Serf cleans the Purification Channel. Acquired Datajack. K-01 Serf cleans the Terminal. LOCATION=MINES GOAL=ESCAPE ALERT: Infestation in the mines, dispatching Demolisher response squad. The unstable cave ceiling collapses. Lgt. Ion Engine destroyed. Bump into an enemy to attack with the active melee weapon. Even while active, melee weapons do not fire together with ranged weapons in the same volley. The unstable cave ceiling collapses. Lgt. Assault Rifle destroyed. Com. Wheel destroyed. [Achievement: First Step to Greatness] Map ----- +----------------------------------------------------+ | ?????????????????????????????????? | | ?????????????????????????????????? | | ?????????????????????????????????? | | ?????????????????????????????????? | | ?????????????????????????????????? | | ?????????????????????????????????? | | ?????????????????????????????????? | | ?????????????????????????????????? | | ?????????????????????????????????? | | ?????????????????????????????????? | | ?????????????????????????????????? | | ?????????????????????????????????? | | ?????????????????????????????????? | | ?????????????????????????????????? | | ?????###?????????????????????????? | | ????## #????????????????????????? | | ????? ????????????????????????? | | ?????# ##??????????????????????? | | ??#### ##?????????????????????? | | ??# ##??#?????????????????? | | ??# ## #?????????????????? | | ??# # # #?????????????????? | | ??# # ??????????????????? | | ??# g #???????????????????? | | ?????# g #???????????????????? | | ?????# @ #???????????????????? | | ????# #??????????????????? | | ????# #??????????????????? | | ????## ##??????????????????? | | ?????#########???????????????????? | | ?????????????????????????????????? | | ?????????????????????????????????? | | ?????????????????????????????????? | | ?????????????????????????????????? | | ?????????????????????????????????? | | ?????????????????????????????????? | | ?????????????????????????????????? | | ?????????????????????????????????? | | ?????????????????????????????????? | | ?????????????????????????????????? | | ?????????????????????????????????? | | ?????????????????????????????????? | | ?????????????????????????????????? | | ?????????????????????????????????? | | ?????????????????????????????????? | | ?????????????????????????????????? | | ?????????????????????????????????? | | ?????????????????????????????????? | | ?????????????????????????????????? | | ?????????????????????????????????? | +----------------------------------------------------+ Best States ------------- Heat Dissipation 35 Energy Generation 14 Energy Capacity 250 Matter Stores 300 Matter Capacity 300 Sight Range 16 Robot Scan Range 14 Terrain Scan Density 10 Evasion (%) 50 Offensive Hacking 10 Item Schematics ----------------- None Robot Schematics ------------------ None Fabricated ------------ Nothing Alien Tech Used ----------------- None Achievements -------------- Everything Is Under Control First Step to Greatness One Hack Too Far Part-time Mechanic Risk Taker Shopping List Storm Trooper Uninvited Guest Challenges ------------ None Game ------ Seed DisruptorFocalStick Manual? 0 Play Time 01:16:18 Cumulative 1.2 hours Start 2024.03.31 @ 02:21:45 End 2024.03.31 @ 15:58:41 Sessions 7 Manual Loads 0 Difficulty Rogue Special Mode None Game No. 1 Rogue 1 Adventurer 0 Explorer 0 Win Type - Total 0 Types 0/0/0/0/0/0/0/0/0 Lore% 0 Gallery% 2 Achievement% 3 Wizard Run 0 Options --------- Layout 0 ASCII 0 Keyboard 0 Movement Mouse Keybinds 0 Fullscreen 1 Font 18/SmallcapsGlow Map View 76x50 Zoom Use 0% Tactical HUD 0 Map Filters NONE Filters NONE Steam 1 RUN: b2b20ced-45e0-4add-8e04-49280342d5ef